[Event "VII Lorca Open 2018"]
[Site "Lorca"]
[Date "2018.12.28"]
[Round "4"]
[White "Korneev Leskova, Svyatoslav"]
[Black "Domingo Nunez, Alejandro"]
[Result "1/2-1/2"]
[ECO "A36"]
[WhiteElo "2134"]
[BlackElo "2404"]
[Annotator "ChessBase"]
[PlyCount "112"]
[EventDate "2018.12.26"]
[EventType "swiss"]
[EventCountry "ESP"]
[SourceTitle "playchess.com"]
[Source "ChessBase"]
[SourceQuality "1"]
[TimeControl "5400+30"]

1. c4 {[%emt 0:00:00]} c5 {[%emt 0:00:00]} 2. Nc3 {[%emt 0:00:00]} Nc6 {[%emt 0:00:40]} 3. g3 {[%emt 0:00:07]} g6 {[%emt 0:00:08]} 4. Bg2 {[%emt 0:00:07]} Bg7 {[%emt 0:00:04]} 5. Nh3 {[%emt 0:00:13]} e6 {[%emt 0:02:25]} 6. Nf4 {[%emt 0:00:41]} Nge7 {[%emt 0:00:49]} 7. h4 {[%emt 0:00:08]} h6 {[%emt 0:04:24]} 8. d3 {[%emt 0:02:49]} d6 {[%emt 0:01:58]} 9. Qd2 {[%emt 0:01:59]} a6 {[%emt 0:03:08]} 10. b3 {[%emt 0:02:23]} Rb8 {[%emt 0:06:29]} 11. Bb2 {[%emt 0:00:18]} O-O {[%emt 0:04:28]} 12. h5 {[%emt 0:18:29]} g5 {[%emt 0:02:50]} 13. Nh3 {[%emt 0:00:02]} f5 {[%emt 0:08:01]} 14. f4 {[%emt 0:23:54]} g4 {[%emt 0:05:12]} 15. Nf2 {[%emt 0:00:19]} b5 {[%emt 0:08:38]} 16. e4 {[%emt 0:05:30]} Nd4 {[%emt 0:03:49]} 17. Ne2 {[%emt 0:00:44]} Nec6 {[%emt 0:16:21]} 18. exf5 {[%emt 0:14:12]} exf5 {[%emt 0:00:38]} 19. Bxc6 {[%emt 0:00:24]} Nxc6 {[%emt 0:00:03]} 20. Bxg7 {[%emt 0:00:12]} Kxg7 {[%emt 0:00:05]} 21. Qc3+ {[%emt 0:01:53]} Qf6 {[%emt 0:06:58]} 22. Qxf6+ {[%emt 0:01:14]} Kxf6 {[%emt 0:00:04]} 23. Kd2 {[%emt 0:00:48]} Re8 {[%emt 0:00:23]} 24. Nd1 {[%emt 0:00:44]} Be6 {[%emt 0:03:59]} 25. Ne3 {[%emt 0:02:46]} b4 {[%emt 0:01:15]} 26. Rac1 {[%emt 0:04:41]} Rbc8 {[%emt 0:04:56]} 27. d4 {[%emt 0:00:20]} Bf7 {[%emt 0:04:39]} 28. Rce1 {[%emt 0:05:56]} cxd4 {[%emt 0:04:07]} 29. Nc2 {[%emt 0:00:54]} Re4 {[%emt 0:01:23]} 30. Kd3 {[%emt 0:00:06]} d5 {[%emt 0:01:55]} 31. c5 {[%emt 0:00:44]} a5 {[%emt 0:02:41]} 32. Nexd4 {[%emt 0:00:44]} Nd8 {[%emt 0:00:41]} 33. Ne3 {[%emt 0:02:31]} Nb7 {[%emt 0:02:35]} 34. Nexf5 {[%emt 0:02:25]} Nxc5+ {[%emt 0:00:04]} 35. Kd2 {[%emt 0:00:08]} Rxe1 {[%emt 0:00:09]} 36. Kxe1 {[%emt 0:00:58]} Ne4 {[%emt 0:00:52]} 37. Rh4 {[%emt 0:01:05]} Rc1+ {[%emt 0:00:22]} 38. Ke2 {[%emt 0:00:01]} Ra1 {[%emt 0:00:50]} 39. Nxh6 {[%emt 0:00:23]} Nxg3+ {[%emt 0:00:46]} 40. Ke3 {[%emt 0:02:42]} Bxh5 {[%emt 0:00:35]} 41. Nxg4+ {[%emt 0:01:30]} Bxg4 {[%emt 0:00:25]} 42. Rxg4 {[%emt 0:00:05]} Ne4 {[%emt 0:00:09]} 43. Rg2 {[%emt 0:01:58]} Nc3 {[%emt 0:00:58]} 44. Nc6 {[%emt 0:01:06]} Re1+ {[%emt 0:00:30]} 45. Kd3 {[%emt 0:01:32]} Kf5 {[%emt 0:00:32]} 46. Nxa5 {[%emt 0:00:40]} Kxf4 {[%emt 0:00:28]} 47. Nc6 {[%emt 0:00:22]} Rd1+ {[%emt 0:00:31]} 48. Kc2 {[%emt 0:00:16]} d4 {[%emt 0:00:31]} 49. Nxb4 {[%emt 0:00:29]} Kf3 {[%emt 0:00:29]} 50. Rh2 {[%emt 0:01:58]} Ra1 {[%emt 0:00:20]} 51. Rh4 {[%emt 0:00:53]} Ke3 {[%emt 0:00:37]} 52. Rh3+ {[%emt 0:00:09]} Ke4 {[%emt 0:00:27]} 53. Rh8 {[%emt 0:00:50]} Nxa2 {[%emt 0:00:33]} 54. Kb2 {[%emt 0:00:01]} Nxb4 {[%emt 0:00:28]} 55. Kxa1 {[%emt 0:00:05]} d3 {[%emt 0:00:05]} 56. Rh4+ {[%emt 0:00:01]} Kd5 {[%emt 0:01:33]} 1/2-1/2

[Event "VII Lorca Open 2018"]
[Site "Lorca"]
[Date "2018.12.28"]
[Round "4"]
[White "Motos Abellan, Daniel"]
[Black "Gines Esteo, Pedro Antonio"]
[Result "0-1"]
[ECO "A02"]
[WhiteElo "2115"]
[BlackElo "2339"]
[Annotator "NA"]
[PlyCount "78"]
[EventDate "2018.12.26"]
[EventType "swiss"]
[EventCountry "ESP"]
[SourceTitle "playchess.com"]
[Source "ChessBase"]
[SourceQuality "1"]
[TimeControl "5400+30"]

1. f4 {[%emt 1:30:30]} Nh6 {[%emt 1:30:30]} 2. b3 {[%emt 0:00:30]} e5 {[%emt 0:00:30]} 3. fxe5 {[%emt 0:00:30]} d6 {[%emt 0:00:30]} 4. Bb2 {[%emt 0:00:30]} dxe5 {[%emt 0:00:30]} 5. Bxe5 {[%emt 0:00:30]} Ng4 {[%emt 0:00:30]} 6. Bg3 {[%emt 0:00:30]} Qf6 {[%emt 0:00:30]} 7. Nc3 {[%emt 0:00:30]} Ne3 {[%emt 0:00:30]} 8. dxe3 {[%emt 0:00:30]} Qxc3+ {[%emt 0:00:30]} 9. Kf2 {[%emt 0:00:30]} Bc5 {[%emt 0:00:30]} 10. Bf4 {[%emt 0:00:30]} Nd7 {[%emt 0:00:30]} 11. Rb1 {[%emt 0:00:30]} Ne5 {[%emt 0:00:30]} 12. Bxe5 {[%emt 0:00:30]} Bxe3+ {[%emt 0:00:30]} 13. Kf3 {[%emt 0:00:30]} Qxe5 {[%emt 0:00:30]} 14. g3 {[%emt 0:00:30]} Bd7 {[%emt 0:00:30]} 15. Kg2 {[%emt 0:00:30]} O-O-O {[%emt 0:00:30]} 16. Qe1 {[%emt 0:00:30]} Bc6+ {[%emt 0:00:30]} 17. Nf3 {[%emt 0:00:30]} g5 {[%emt 0:00:30]} 18. h3 {[%emt 0:00:30]} h5 {[%emt 0:00:30]} 19. Kh2 {[%emt 0:00:30]} Bxf3 {[%emt 0:00:30]} 20. exf3 {[%emt 0:00:30]} Rd2+ {[%emt 0:00:30]} 21. Bg2 {[%emt 0:00:30]} h4 {[%emt 0:00:30]} 22. Rf1 {[%emt 0:00:30]} hxg3+ {[%emt 0:00:30]} 23. Kh1 {[%emt 0:00:30]} Rxh3+ {[%emt 0:00:30]} 24. Bxh3+ {[%emt 0:00:30]} Kb8 {[%emt 0:00:30]} 25. Qxd2 {[%emt 0:00:30]} Bxd2 {[%emt 0:00:30]} 26. Rbd1 {[%emt 0:00:30]} Qe2 {[%emt 0:00:30]} 27. Bg2 {[%emt 0:00:30]} a6 {[%emt 0:00:30]} 28. c4 {[%emt 0:00:30]} Qe3 {[%emt 0:00:30]} 29. c5 {[%emt 0:00:30]} g4 {[%emt 0:00:30]} 30. f4 {[%emt 0:00:30]} Qc3 {[%emt 0:00:30]} 31. Rxd2 {[%emt 0:00:30]} Qxd2 {[%emt 0:00:30]} (31... Qh8+ $142 32. Bh3 gxh3) 32. c6 {[%emt 0:00:30]} bxc6 {[%emt 0:00:30]} 33. a4 {[%emt 0:00:30]} a5 {[%emt 0:00:30]} 34. Rb1 {[%emt 0:00:30]} Qxf4 {[%emt 0:00:30]} 35. Rd1 {[%emt 0:00:30]} Kb7 {[%emt 0:00:30]} 36. Re1 {[%emt 0:00:30]} f5 {[%emt 0:00:30]} 37. Rd1 {[%emt 0:00:30]} Qh6+ {[%emt 0:00:30]} 38. Kg1 {[%emt 0:00:30]} f4 {[%emt 0:00:30]} 39. b4 {[%emt 0:00:30]} f3 {[%emt 0:00:30]} 0-1

[Event "VII Lorca Open 2018"]
[Site "Lorca"]
[Date "2018.12.28"]
[Round "5"]
[White "Domingo Nunez, Alejandro"]
[Black "Terbe, Julianna"]
[Result "1-0"]
[ECO "B21"]
[WhiteElo "2404"]
[BlackElo "2272"]
[Annotator "NA"]
[PlyCount "83"]
[EventDate "2018.12.26"]
[EventType "swiss"]
[EventCountry "ESP"]
[SourceTitle "playchess.com"]
[Source "ChessBase"]
[SourceQuality "1"]
[TimeControl "5400+30"]

1. e4 {[%emt 0:00:00]} c5 {[%emt 0:00:00]} 2. Nf3 {[%emt 0:00:00]} Nc6 {[%emt 0:00:00]} 3. d4 {[%emt 0:00:00]} cxd4 {[%emt 0:00:00]} 4. c3 {[%emt 0:00:00]} dxc3 {[%emt 0:00:26]} 5. Nxc3 {[%emt 0:00:00]} e6 {[%emt 0:00:06]} 6. Bc4 {[%emt 0:00:00]} a6 {[%emt 0:00:03]} 7. O-O {[%emt 0:00:03]} b5 {[%emt 0:00:03]} 8. Bb3 {[%emt 0:00:04]} Bb7 {[%emt 0:00:23]} 9. a4 {[%emt 0:00:40]} b4 {[%emt 0:12:27]} 10. Nd5 {[%emt 0:00:03]} d6 {[%emt 0:01:10]} 11. a5 {[%emt 0:02:54]} exd5 {[%emt 0:16:10]} 12. exd5 {[%emt 0:00:37]} Ne5 {[%emt 0:00:09]} 13. Ba4+ {[%emt 0:07:36]} Nd7 {[%emt 0:02:25]} 14. Nd4 {[%emt 0:03:14]} Be7 {[%emt 0:10:53]} 15. Nf5 {[%emt 0:35:11]} Kf8 {[%emt 0:01:39]} 16. Qg4 {[%emt 0:00:59]} g6 {[%emt 0:14:49]} 17. Nxe7 {[%emt 0:00:23]} Ne5 {[%emt 0:06:31]} 18. Qd4 {[%emt 0:00:29]} Qxe7 {[%emt 0:05:15]} 19. f4 {[%emt 0:00:16]} f6 {[%emt 0:00:09]} 20. fxe5 {[%emt 0:00:10]} dxe5 {[%emt 0:00:05]} 21. Qb6 {[%emt 0:02:11]} Bxd5 {[%emt 0:03:25]} 22. Be3 {[%emt 0:02:26]} Qe6 {[%emt 0:04:38]} 23. Rad1 {[%emt 0:22:01]} Kf7 {[%emt 0:10:58]} 24. Rxd5 {[%emt 0:06:31]} Qxd5 {[%emt 0:00:36]} 25. Rd1 {[%emt 0:00:21]} Qc4 {[%emt 0:03:32]} 26. Rd7+ {[%emt 0:02:42]} Ne7 {[%emt 0:00:15]} 27. Rxe7+ {[%emt 0:00:23]} Kxe7 {[%emt 0:00:08]} 28. Bc5+ {[%emt 0:00:04]} Kf7 {[%emt 0:00:33]} 29. Qb7+ {[%emt 0:00:07]} Kg8 {[%emt 0:00:28]} 30. Qxa8+ {[%emt 0:00:11]} Kg7 {[%emt 0:00:01]} 31. Qb7+ {[%emt 0:02:21]} Kh6 {[%emt 0:01:33]} 32. Be3+ {[%emt 0:00:08]} g5 {[%emt 0:00:05]} 33. Qf3 {[%emt 0:07:31]} Rf8 {[%emt 0:03:16]} 34. Bb3 {[%emt 0:01:59]} Qc7 {[%emt 0:01:13]} 35. h4 {[%emt 0:00:15]} Kg7 {[%emt 0:00:55]} 36. Qg4 {[%emt 0:04:57]} h5 {[%emt 0:02:06]} 37. Qf5 {[%emt 0:00:30]} gxh4 {[%emt 0:01:26]} 38. Qxh5 {[%emt 0:00:33]} Rh8 {[%emt 0:00:20]} 39. Qg4+ {[%emt 0:00:04]} Kf8 {[%emt 0:00:10]} 40. Qg6 {[%emt 0:00:37]} Qe7 {[%emt 0:01:01]} 41. Bh6+ {[%emt 0:00:16]} Rxh6 {[%emt 0:00:01]} 42. Qg8# {[%emt 0:02:13]} 1-0

[Event "VII Lorca Open 2018"]
[Site "Lorca"]
[Date "2018.12.28"]
[Round "5"]
[White "Sabuk, Piotr"]
[Black "Bharath Subramaniyam H"]
[Result "1/2-1/2"]
[ECO "E14"]
[WhiteElo "2391"]
[BlackElo "2234"]
[Annotator "NA"]
[PlyCount "112"]
[EventDate "2018.12.26"]
[EventType "swiss"]
[EventCountry "ESP"]
[SourceTitle "playchess.com"]
[Source "ChessBase"]
[SourceQuality "1"]
[TimeControl "5400+30"]

1. d4 {[%emt 0:00:00]} Nf6 {[%emt 0:00:00]} 2. c4 {[%emt 0:00:42]} e6 {[%emt 1:31:00]} 3. Nf3 {[%emt 0:00:50]} c5 {[%emt 0:00:00]} 4. e3 {[%emt 0:00:45]} b6 {[%emt 0:00:00]} 5. Nc3 {[%emt 0:02:08]} Bb7 {[%emt 0:00:00]} 6. d5 {[%emt 0:00:59]} exd5 {[%emt 0:00:00]} 7. cxd5 {[%emt 0:00:19]} d6 {[%emt 0:00:00]} 8. e4 {[%emt 0:02:15]} a6 {[%emt 0:00:00]} 9. Bd3 {[%emt 0:02:54]} b5 {[%emt 0:00:00]} 10. O-O {[%emt 0:04:11]} Be7 {[%emt 0:00:00]} 11. Re1 {[%emt 0:07:32]} O-O {[%emt 0:00:00]} 12. a4 {[%emt 0:14:09]} b4 {[%emt 0:00:00]} 13. Nb1 {[%emt 0:03:42]} a5 {[%emt 0:00:00]} 14. Nbd2 {[%emt 0:00:25]} Nbd7 {[%emt 0:00:00]} 15. Nc4 {[%emt 0:01:07]} Nb6 {[%emt 0:00:00]} 16. e5 {[%emt 0:14:38]} Nfxd5 {[%emt 0:00:00]} 17. Nxd6 {[%emt 0:03:12]} Bc6 {[%emt 0:00:00]} 18. Qc2 {[%emt 0:06:33]} h6 {[%emt 0:00:00]} 19. Qxc5 {[%emt 0:05:26]} Qc7 {[%emt 0:00:00]} 20. b3 {[%emt 0:12:25]} Nd7 {[%emt 0:00:00]} 21. Qd4 {[%emt 0:00:52]} Bxd6 {[%emt 0:00:00]} 22. exd6 {[%emt 0:08:38]} Qxd6 {[%emt 0:00:00]} 23. Bb2 {[%emt 0:00:14]} N7f6 {[%emt 0:00:00]} 24. Ne5 {[%emt 0:02:47]} Rad8 {[%emt 0:00:00]} 25. Rac1 {[%emt 0:02:33]} Ba8 {[%emt 0:00:00]} 26. Qc5 {[%emt 0:00:44]} Nf4 {[%emt 0:00:00]} 27. Qxd6 {[%emt 0:00:49]} Rxd6 {[%emt 0:00:00]} 28. Bf1 {[%emt 0:00:09]} Bd5 {[%emt 0:00:00]} 29. Nc4 {[%emt 0:00:39]} Bxc4 {[%emt 0:00:00]} 30. Rxc4 {[%emt 0:01:26]} Nd3 {[%emt 0:00:00]} 31. Rd1 {[%emt 0:00:26]} Rfd8 {[%emt 0:00:00]} 32. Bxf6 {[%emt 0:01:11]} gxf6 {[%emt 0:00:00]} 33. Rc2 {[%emt 0:00:55]} Ne5 {[%emt 0:00:00]} 34. Rxd6 {[%emt 0:00:02]} Rxd6 {[%emt 0:00:00]} 35. Be2 {[%emt 0:00:50]} Rc6 {[%emt 0:00:00]} 36. Rxc6 {[%emt 0:00:23]} Nxc6 {[%emt 0:00:00]} 37. f4 {[%emt 0:00:42]} Kf8 {[%emt 0:00:00]} 38. Kf2 {[%emt 0:00:01]} Ke7 {[%emt 0:00:00]} 39. Ke3 {[%emt 0:00:02]} Kd6 {[%emt 0:00:00]} 40. Bc4 {[%emt 0:00:47]} Nd8 {[%emt 0:00:00]} 41. Ke4 {[%emt 0:00:06]} Ne6 {[%emt 0:00:00]} 42. Kf5 {[%emt 0:00:54]} Ke7 {[%emt 0:00:00]} 43. Bxe6 {[%emt 0:00:42]} fxe6+ {[%emt 0:00:00]} 44. Kg6 {[%emt 0:00:11]} e5 {[%emt 0:00:00]} 45. fxe5 {[%emt 0:01:11]} fxe5 {[%emt 0:00:00]} 46. Kf5 {[%emt 0:00:03]} Kd6 {[%emt 0:00:00]} 47. Ke4 {[%emt 0:00:48]} h5 {[%emt 0:00:00]} 48. g3 {[%emt 0:00:53]} Ke6 {[%emt 0:00:00]} 49. h3 {[%emt 0:00:23]} Kf6 {[%emt 0:00:00]} 50. Ke3 {[%emt 0:00:42]} Ke6 {[%emt 0:00:00]} 51. Kf3 {[%emt 0:00:34]} Kf5 {[%emt 0:00:00]} 52. Ke3 {[%emt 0:00:32]} Ke6 {[%emt 0:00:00]} 53. Ke4 {[%emt 0:00:27]} Kf6 {[%emt 0:00:00]} 54. Kd3 {[%emt 0:00:18]} Kf5 {[%emt 0:00:00]} 55. Ke3 {[%emt 0:00:27]} Ke6 {[%emt 0:00:00]} 56. Ke4 {[%emt 0:00:36]} Kf6 {[%emt 0:00:00]} 1/2-1/2

[Event "VII Lorca Open 2018"]
[Site "Lorca"]
[Date "2018.12.28"]
[Round "5"]
[White "Domingo Nunez, Ruben"]
[Black "Montanes Arribas, Adrian"]
[Result "1-0"]
[ECO "B90"]
[WhiteElo "2383"]
[BlackElo "2242"]
[Annotator "NA"]
[PlyCount "69"]
[EventDate "2018.12.26"]
[EventType "swiss"]
[EventCountry "ESP"]
[SourceTitle "playchess.com"]
[Source "ChessBase"]
[SourceQuality "1"]
[TimeControl "5400+30"]

1. Nf3 {[%emt 0:00:06]} c5 {[%emt 0:05:24]} 2. e4 {[%emt 0:00:42]} d6 {[%emt 0:00:11]} 3. d4 {[%emt 0:00:04]} cxd4 {[%emt 0:00:12]} 4. Nxd4 {[%emt 0:00:02]} Nf6 {[%emt 0:00:20]} 5. Nc3 {[%emt 0:00:03]} a6 {[%emt 0:00:07]} 6. f3 {[%emt 0:00:05]} e5 {[%emt 0:00:07]} 7. Nb3 {[%emt 0:00:04]} Be6 {[%emt 0:00:27]} 8. Be3 {[%emt 0:00:04]} h5 {[%emt 0:00:16]} 9. Qd2 {[%emt 0:00:24]} Nbd7 {[%emt 0:00:16]} 10. O-O-O {[%emt 0:01:00]} Rc8 {[%emt 0:00:31]} 11. Kb1 {[%emt 0:01:02]} Be7 {[%emt 0:01:46]} 12. h4 {[%emt 0:07:32]} b5 {[%emt 0:03:13]} 13. Bg5 {[%emt 0:02:57]} Qc7 {[%emt 0:08:51]} 14. a3 {[%emt 0:01:22]} O-O {[%emt 0:17:07]} 15. g4 {[%emt 0:09:24]} Nb6 {[%emt 0:07:16]} 16. gxh5 {[%emt 0:20:18]} Nc4 {[%emt 0:08:39]} 17. Bxc4 {[%emt 0:00:49]} bxc4 {[%emt 0:00:07]} 18. Nc1 {[%emt 0:04:21]} Rb8 {[%emt 0:08:52]} 19. N1a2 {[%emt 0:13:02]} Qb7 {[%emt 0:04:30]} 20. Qc1 {[%emt 0:01:05]} Nxh5 {[%emt 0:09:33]} 21. Bxe7 {[%emt 0:12:34]} Qxe7 {[%emt 0:00:02]} 22. Nb4 {[%emt 0:00:01]} Rxb4 {[%emt 0:04:04]} 23. axb4 {[%emt 0:00:02]} Nf4 {[%emt 0:00:57]} 24. Qd2 {[%emt 0:02:14]} Rd8 {[%emt 0:01:22]} 25. Ne2 {[%emt 0:02:29]} c3 {[%emt 0:05:09]} 26. Nxc3 {[%emt 0:03:27]} Qb7 {[%emt 0:00:36]} 27. Na4 {[%emt 0:04:54]} Qb5 {[%emt 0:01:51]} 28. b3 {[%emt 0:02:05]} Bc4 {[%emt 0:04:16]} 29. Nc3 {[%emt 0:03:21]} Qxb4 {[%emt 0:00:06]} 30. Nd5 {[%emt 0:00:04]} Qxd2 {[%emt 0:02:25]} 31. Rxd2 {[%emt 0:00:39]} Bxd5 {[%emt 0:00:03]} 32. exd5 {[%emt 0:00:03]} f5 {[%emt 0:00:45]} 33. c4 {[%emt 0:00:04]} e4 {[%emt 0:01:12]} 34. fxe4 {[%emt 0:01:01]} fxe4 {[%emt 0:00:02]} 35. Re1 {[%emt 0:10:06]} 1-0

[Event "VII Lorca Open 2018"]
[Site "Lorca"]
[Date "2018.12.28"]
[Round "5"]
[White "Valmana Canto, Jaime"]
[Black "Korneev Leskova, Svyatoslav"]
[Result "1-0"]
[ECO "C18"]
[WhiteElo "2359"]
[BlackElo "2134"]
[Annotator "NA"]
[PlyCount "93"]
[EventDate "2018.12.26"]
[EventType "swiss"]
[EventCountry "ESP"]
[SourceTitle "playchess.com"]
[Source "ChessBase"]
[SourceQuality "1"]
[TimeControl "5400+30"]

1. e4 {[%emt 0:10:28]} e6 {[%emt 0:00:00]} 2. d4 {[%emt 0:00:10]} d5 {[%emt 0:00:00]} 3. Nc3 {[%emt 0:01:40]} Bb4 {[%emt 0:00:05]} 4. e5 {[%emt 0:00:07]} c5 {[%emt 0:00:04]} 5. a3 {[%emt 0:00:05]} Bxc3+ {[%emt 0:00:05]} 6. bxc3 {[%emt 0:00:08]} Qa5 {[%emt 0:00:05]} 7. Bd2 {[%emt 0:00:07]} Qa4 {[%emt 0:00:04]} 8. Qg4 {[%emt 0:01:10]} g6 {[%emt 0:01:51]} 9. Qf4 {[%emt 0:02:19]} c4 {[%emt 0:03:46]} 10. Nf3 {[%emt 0:01:56]} h6 {[%emt 0:06:29]} 11. Be2 {[%emt 0:04:59]} Nc6 {[%emt 0:01:28]} 12. O-O {[%emt 0:01:20]} Bd7 {[%emt 0:00:13]} 13. h4 {[%emt 0:16:03]} O-O-O {[%emt 0:05:58]} 14. Qxf7 {[%emt 0:09:45]} Nge7 {[%emt 0:00:08]} 15. Qf4 {[%emt 0:00:04]} Rdf8 {[%emt 0:01:01]} 16. Qg3 {[%emt 0:00:13]} Qxc2 {[%emt 0:05:02]} 17. Rfc1 {[%emt 0:04:20]} Qf5 {[%emt 0:02:40]} 18. Bd1 {[%emt 0:05:35]} Qf7 {[%emt 0:03:24]} 19. Bc2 {[%emt 0:06:35]} g5 {[%emt 0:14:10]} 20. hxg5 {[%emt 0:00:43]} hxg5 {[%emt 0:00:28]} 21. Nxg5 {[%emt 0:00:48]} Qh5 {[%emt 0:00:06]} 22. f4 {[%emt 0:00:54]} Qe2 {[%emt 0:02:04]} 23. Nf3 {[%emt 0:07:23]} Rfg8 {[%emt 0:00:13]} 24. Re1 {[%emt 0:00:02]} Rxg3 {[%emt 0:03:20]} 25. Rxe2 {[%emt 0:00:05]} Na5 {[%emt 0:03:00]} 26. Kf2 {[%emt 0:00:45]} Rg4 {[%emt 0:01:19]} 27. Rg1 {[%emt 0:06:56]} Nb3 {[%emt 0:00:27]} 28. Be3 {[%emt 0:00:12]} Rf8 {[%emt 0:02:02]} 29. g3 {[%emt 0:01:19]} Nf5 {[%emt 0:01:43]} 30. Nh2 {[%emt 0:01:27]} Rg7 {[%emt 0:01:21]} 31. g4 {[%emt 0:00:41]} Rh8 {[%emt 0:01:34]} 32. Nf3 {[%emt 0:02:12]} Nh6 {[%emt 0:00:06]} 33. Ng5 {[%emt 0:00:26]} Na5 {[%emt 0:01:17]} 34. Kg3 {[%emt 0:00:43]} Rhg8 {[%emt 0:02:27]} 35. Rh1 {[%emt 0:01:30]} Nf7 {[%emt 0:00:05]} 36. Nxf7 {[%emt 0:00:07]} Rxf7 {[%emt 0:00:13]} 37. Rh7 {[%emt 0:01:01]} Rff8 {[%emt 0:00:03]} 38. Reh2 {[%emt 0:00:23]} Nc6 {[%emt 0:00:07]} 39. R2h6 {[%emt 0:00:15]} Kd8 {[%emt 0:00:13]} 40. Rf6 {[%emt 0:00:27]} Ne7 {[%emt 0:00:29]} 41. Rxf8+ {[%emt 0:01:39]} Rxf8 {[%emt 0:00:01]} 42. f5 {[%emt 0:00:21]} Rg8 {[%emt 0:00:41]} 43. f6 {[%emt 0:00:52]} Nf5+ {[%emt 0:00:31]} 44. Bxf5 {[%emt 0:01:29]} exf5 {[%emt 0:00:04]} 45. f7 {[%emt 0:00:28]} Rxg4+ {[%emt 0:00:50]} 46. Kf3 {[%emt 0:00:02]} Ke7 {[%emt 0:00:12]} 47. Bh6 {[%emt 0:00:07]} 1-0

[Event "VII Lorca Open 2018"]
[Site "Lorca"]
[Date "2018.12.28"]
[Round "5"]
[White "Martin Duque, Jesus"]
[Black "Garrido Outon, Alex"]
[Result "1-0"]
[ECO "C24"]
[WhiteElo "2354"]
[BlackElo "2097"]
[Annotator "NA"]
[PlyCount "99"]
[EventDate "2018.12.26"]
[EventType "swiss"]
[EventCountry "ESP"]
[SourceTitle "playchess.com"]
[Source "ChessBase"]
[SourceQuality "1"]
[TimeControl "5400+30"]

1. e4 {[%emt 0:05:38]} e5 {[%emt 0:00:00]} 2. Nf3 {[%emt 0:00:06]} Nc6 {[%emt 0:00:00]} 3. Bc4 {[%emt 0:00:05]} Bc5 {[%emt 0:00:00]} 4. d3 {[%emt 0:00:09]} Nf6 {[%emt 0:00:06]} 5. O-O {[%emt 0:00:11]} O-O {[%emt 0:00:07]} 6. h3 {[%emt 0:00:09]} d5 {[%emt 0:05:24]} 7. exd5 {[%emt 0:01:14]} Nxd5 {[%emt 0:00:59]} 8. Re1 {[%emt 0:00:13]} Nb6 {[%emt 0:03:19]} 9. Bb3 {[%emt 0:03:13]} Bf5 {[%emt 0:08:50]} 10. Nc3 {[%emt 0:15:07]} Qd7 {[%emt 0:07:46]} 11. Be3 {[%emt 0:09:44]} Bd4 {[%emt 0:16:15]} 12. Bxd4 {[%emt 0:10:30]} exd4 {[%emt 0:00:18]} 13. Ne2 {[%emt 0:00:03]} Qd6 {[%emt 0:09:28]} 14. Qd2 {[%emt 0:02:19]} Rae8 {[%emt 0:04:26]} 15. Qg5 {[%emt 0:02:20]} Be6 {[%emt 0:01:29]} 16. Qh4 {[%emt 0:03:35]} Bxb3 {[%emt 0:02:20]} 17. axb3 {[%emt 0:00:02]} Rd8 {[%emt 0:03:55]} 18. Ng3 {[%emt 0:00:54]} Qc5 {[%emt 0:03:31]} 19. Re2 {[%emt 0:03:59]} Nd7 {[%emt 0:05:15]} 20. Qf4 {[%emt 0:02:26]} Nf6 {[%emt 0:02:38]} 21. Qxc7 {[%emt 0:06:13]} Nd5 {[%emt 0:00:18]} 22. Qxb7 {[%emt 0:00:19]} Nf4 {[%emt 0:03:14]} 23. Rd2 {[%emt 0:10:03]} Qd5 {[%emt 0:06:09]} 24. Re1 {[%emt 0:02:42]} Nxh3+ {[%emt 0:02:36]} 25. Kf1 {[%emt 0:01:56]} Rd6 {[%emt 0:02:20]} 26. Ne4 {[%emt 0:01:54]} Rg6 {[%emt 0:00:27]} 27. gxh3 {[%emt 0:02:49]} Qh5 {[%emt 0:02:46]} 28. Neg5 {[%emt 0:02:36]} h6 {[%emt 0:01:08]} 29. Re8 {[%emt 0:00:50]} hxg5 {[%emt 0:02:43]} 30. Rxf8+ {[%emt 0:00:07]} Kxf8 {[%emt 0:00:01]} 31. Qc8+ {[%emt 0:00:14]} Ke7 {[%emt 0:00:06]} 32. Re2+ {[%emt 0:03:20]} Kd6 {[%emt 0:00:00]} 33. Qf8+ {[%emt 0:00:41]} Kc7 {[%emt 0:00:04]} 34. Qxf7+ {[%emt 0:00:24]} Kb6 {[%emt 0:00:00]} 35. Kg1 {[%emt 0:03:44]} Qh6 {[%emt 0:04:13]} 36. Nd2 {[%emt 0:04:15]} g4 {[%emt 0:01:06]} 37. Nc4+ {[%emt 0:00:01]} Ka6 {[%emt 0:00:30]} 38. Re1 {[%emt 0:00:07]} gxh3+ {[%emt 0:02:56]} 39. Kh1 {[%emt 0:00:01]} Rg5 {[%emt 0:02:16]} 40. Ra1+ {[%emt 0:00:33]} Na5 {[%emt 0:00:01]} 41. Nxa5 {[%emt 0:02:27]} Rxa5 {[%emt 0:00:07]} 42. Rxa5+ {[%emt 0:00:06]} Kxa5 {[%emt 0:00:04]} 43. Qxa7+ {[%emt 0:00:09]} Kb5 {[%emt 0:00:08]} 44. Qa4+ {[%emt 0:00:13]} Kb6 {[%emt 0:00:33]} 45. Qxd4+ {[%emt 0:00:16]} Ka5 {[%emt 0:00:45]} 46. Qa7+ {[%emt 0:00:39]} Kb4 {[%emt 0:00:46]} 47. Qa4+ {[%emt 0:00:30]} Kc5 {[%emt 0:00:02]} 48. Qa5+ {[%emt 0:01:15]} Kd4 {[%emt 0:00:13]} 49. Qa7+ {[%emt 0:00:39]} Kd5 {[%emt 0:01:11]} 50. c4+ {[%emt 0:00:09]} 1-0

[Event "VII Lorca Open 2018"]
[Site "Lorca"]
[Date "2018.12.28"]
[Round "5"]
[White "Martinez Fernandez, Adrian"]
[Black "Suarez Uriel, Adrian"]
[Result "1-0"]
[ECO "B39"]
[WhiteElo "2212"]
[BlackElo "2386"]
[Annotator "NA"]
[PlyCount "57"]
[EventDate "2018.12.26"]
[EventType "swiss"]
[EventCountry "ESP"]
[SourceTitle "playchess.com"]
[Source "ChessBase"]
[SourceQuality "1"]
[TimeControl "5400+30"]

1. e4 {[%emt 0:00:00]} c5 {[%emt 0:00:00]} 2. Nf3 {[%emt 0:00:30]} Nc6 {[%emt 0:00:30]} 3. d4 cxd4 {[%emt 0:04:47]} 4. Nxd4 {[%emt 0:00:00]} g6 {[%emt 0:00:03]} 5. c4 {[%emt 0:00:00]} Bg7 {[%emt 0:00:03]} 6. Be3 {[%emt 0:00:00]} Nf6 {[%emt 0:00:16]} 7. Nc3 {[%emt 0:00:00]} Ng4 {[%emt 0:00:25]} 8. Qxg4 {[%emt 0:00:04]} Nxd4 {[%emt 0:00:04]} 9. Qd1 {[%emt 0:00:11]} Ne6 {[%emt 0:00:03]} 10. Qd2 {[%emt 0:00:25]} b6 {[%emt 0:00:28]} 11. Be2 {[%emt 0:04:33]} Bb7 {[%emt 0:00:38]} 12. O-O {[%emt 0:05:49]} O-O {[%emt 0:00:22]} 13. f3 {[%emt 0:00:15]} Rc8 {[%emt 0:02:06]} 14. Rac1 {[%emt 0:02:22]} d6 {[%emt 0:00:52]} 15. b4 {[%emt 0:05:22]} Re8 {[%emt 0:05:00]} 16. Rfd1 {[%emt 0:04:56]} Qc7 {[%emt 0:00:15]} 17. Nd5 {[%emt 0:03:50]} Qb8 {[%emt 0:02:24]} 18. Bf1 {[%emt 0:01:04]} Bc6 {[%emt 0:01:43]} 19. Bg5 {[%emt 0:06:46]} Nf8 {[%emt 0:06:35]} 20. g3 {[%emt 0:03:06]} Qb7 {[%emt 0:03:52]} 21. Bh3 {[%emt 0:04:00]} e6 {[%emt 0:03:21]} 22. Nf6+ {[%emt 0:02:04]} Bxf6 {[%emt 0:00:45]} 23. Bxf6 {[%emt 0:00:08]} Nd7 {[%emt 0:00:25]} 24. Ba1 {[%emt 0:01:57]} Ba4 {[%emt 0:00:46]} 25. Qb2 {[%emt 0:02:40]} f6 {[%emt 0:05:41]} 26. Rxd6 {[%emt 0:01:00]} Ne5 {[%emt 0:01:53]} 27. Bxe6+ {[%emt 0:06:06]} Kg7 {[%emt 0:01:52]} 28. Bxc8 {[%emt 0:00:46]} Rxc8 {[%emt 0:00:14]} 29. Rxf6 {[%emt 0:01:10]} 1-0